[Event "Late-Titled-Tuesday-Blitz-February-13-2024"]
[Site "Chess.com"]
[Date "2024.02.13"]
[Round "7"]
[White "InadaC"]
[Black "Walter_White_Poland"]
[Result "0-1"]
[WhiteElo "2246"]
[BlackElo "2431"]
[TimeControl "180+1"]
[EndTime "15:16:49 PST"]
[Termination "Walter_White_Poland won by checkmate"]

1. d4 {[%clk 0:03:00.9]} 1... d5 {[%clk 0:02:51.7]} 2. c4 {[%clk 0:02:59.9]}
2... e6 {[%clk 0:02:51.9]} 3. Nc3 {[%clk 0:02:59.3]} 3... Nf6 {[%clk 0:02:52.3]}
4. cxd5 {[%clk 0:02:59]} 4... exd5 {[%clk 0:02:51.9]} 5. Bg5 {[%clk 0:02:59.4]}
5... c6 {[%clk 0:02:47.9]} 6. e3 {[%clk 0:02:59.5]} 6... Bf5 {[%clk 0:02:47.8]}
7. Bd3 {[%clk 0:02:57.5]} 7... Bxd3 {[%clk 0:02:47.3]} 8. Qxd3 {[%clk
0:02:57.9]} 8... Bd6 {[%clk 0:02:43.2]} 9. Nf3 {[%clk 0:02:57.8]} 9... O-O
{[%clk 0:02:42.8]} 10. O-O {[%clk 0:02:58.3]} 10... h6 {[%clk 0:02:39.8]} 11.
Bh4 {[%clk 0:02:58.1]} 11... Nbd7 {[%clk 0:02:38.9]} 12. Rfe1 {[%clk 0:02:57.3]}
12... Re8 {[%clk 0:02:38.5]} 13. a3 {[%clk 0:02:56.8]} 13... a5 {[%clk
0:02:37.3]} 14. Bg3 {[%clk 0:02:56.7]} 14... Bxg3 {[%clk 0:02:34.9]} 15. hxg3
{[%clk 0:02:57.1]} 15... Ne4 {[%clk 0:02:34.8]} 16. Nd2 {[%clk 0:02:55.3]} 16...
f5 {[%clk 0:02:21.4]} 17. Ndxe4 {[%clk 0:02:51.7]} 17... fxe4 {[%clk 0:02:21]}
18. Qc2 {[%clk 0:02:49.9]} 18... Rf8 {[%clk 0:02:18.7]} 19. b4 {[%clk
0:02:49.8]} 19... Nf6 {[%clk 0:02:05.4]} 20. b5 {[%clk 0:02:44.7]} 20... Ng4
{[%clk 0:02:03]} 21. Rf1 {[%clk 0:02:39.5]} 21... Qg5 {[%clk 0:02:00.7]} 22. f3
{[%clk 0:01:58.8]} 22... Nxe3 {[%clk 0:01:57.2]} 23. Qd2 {[%clk 0:01:55.9]}
23... Nxf1 {[%clk 0:01:55.6]} 24. Qxg5 {[%clk 0:01:56.5]} 24... hxg5 {[%clk
0:01:55.4]} 25. Rxf1 {[%clk 0:01:56.5]} 25... exf3 {[%clk 0:01:54.9]} 26. gxf3
{[%clk 0:01:56.9]} 26... Rae8 {[%clk 0:01:49.9]} 27. Kf2 {[%clk 0:01:54.3]}
27... g4 {[%clk 0:01:24.4]} 28. f4 {[%clk 0:01:51.7]} 28... g5 {[%clk
0:01:24.3]} 29. bxc6 {[%clk 0:01:50.3]} 29... bxc6 {[%clk 0:01:22.9]} 30. Kg2
{[%clk 0:01:44.5]} 30... Re3 {[%clk 0:01:14.3]} 31. Rc1 {[%clk 0:01:36.9]} 31...
gxf4 {[%clk 0:01:12.3]} 32. gxf4 {[%clk 0:01:36.9]} 32... Rxf4 {[%clk
0:01:10.1]} 33. Nd1 {[%clk 0:01:37.4]} 33... Re2+ {[%clk 0:00:58.9]} 34. Kg3
{[%clk 0:01:36.8]} 34... Rxd4 {[%clk 0:00:58.8]} 35. Nc3 {[%clk 0:01:31.9]}
35... Re3+ {[%clk 0:00:54.7]} 36. Kh4 {[%clk 0:01:29.3]} 36... Rc4 {[%clk
0:00:49.4]} 37. Na2 {[%clk 0:01:21.5]} 37... Rxc1 {[%clk 0:00:48.8]} 38. Nxc1
{[%clk 0:01:22.1]} 38... Rxa3 {[%clk 0:00:48.5]} 39. Ne2 {[%clk 0:01:22.5]}
39... Re3 {[%clk 0:00:45.6]} 40. Nd4 {[%clk 0:01:22.7]} 40... c5 {[%clk
0:00:44]} 41. Nf5 {[%clk 0:01:22.9]} 41... Re4 {[%clk 0:00:41.6]} 42. Ng3 {[%clk
0:01:21.5]} 42... a4 {[%clk 0:00:40.8]} 43. Nf5 {[%clk 0:01:21.7]} 43... a3
{[%clk 0:00:40]} 44. Nh6+ {[%clk 0:01:22.3]} 44... Kf8 {[%clk 0:00:37.6]} 45.
Nf5 {[%clk 0:01:21.1]} 45... a2 {[%clk 0:00:36.7]} 46. Ng3 {[%clk 0:01:22]}
46... a1=Q {[%clk 0:00:36]} 47. Nh5 {[%clk 0:01:22.6]} 47... Qh1+ {[%clk
0:00:34.9]} 48. Kg5 {[%clk 0:01:23.2]} 48... Qxh5+ {[%clk 0:00:34.7]} 49. Kf6
{[%clk 0:01:23.7]} 49... Qe5+ {[%clk 0:00:33]} 50. Kg6 {[%clk 0:01:23.6]} 50...
g3 {[%clk 0:00:28.8]} 51. Kh7 {[%clk 0:01:23]} 51... Qg7# {[%clk 0:00:27.5]} 0-1

[Event "Late-Titled-Tuesday-Blitz-February-13-2024"]
[Site "Chess.com"]
[Date "2024.02.13"]
[Round "7"]
[White "SouS007"]
[Black "ChessSkool"]
[Result "0-1"]
[WhiteElo "2492"]
[BlackElo "2715"]
[TimeControl "180+1"]
[EndTime "15:16:50 PST"]
[Termination "ChessSkool won by resignation"]

1. e4 {[%clk 0:03:00.9]} 1... c6 {[%clk 0:02:57.5]} 2. d4 {[%clk 0:02:59.5]}
2... d5 {[%clk 0:02:58.4]} 3. Nd2 {[%clk 0:02:59.1]} 3... dxe4 {[%clk
0:02:58.4]} 4. Nxe4 {[%clk 0:03:00]} 4... Nf6 {[%clk 0:02:59.1]} 5. Nxf6+ {[%clk
0:02:59.1]} 5... gxf6 {[%clk 0:03:00]} 6. Nf3 {[%clk 0:02:54.7]} 6... Bg4 {[%clk
0:02:58.4]} 7. Be2 {[%clk 0:02:54.1]} 7... Nd7 {[%clk 0:02:58.7]} 8. O-O {[%clk
0:02:48.3]} 8... Qc7 {[%clk 0:02:58.7]} 9. Nh4 {[%clk 0:02:36.3]} 9... Bxe2
{[%clk 0:02:56.5]} 10. Qxe2 {[%clk 0:02:37.2]} 10... e6 {[%clk 0:02:55]} 11. g3
{[%clk 0:02:25.8]} 11... O-O-O {[%clk 0:02:51]} 12. a4 {[%clk 0:02:17.9]} 12...
f5 {[%clk 0:02:33.1]} 13. a5 {[%clk 0:02:09.4]} 13... Bd6 {[%clk 0:02:33.4]} 14.
a6 {[%clk 0:02:04.4]} 14... b6 {[%clk 0:02:33.7]} 15. c3 {[%clk 0:01:52.6]}
15... Rhg8 {[%clk 0:02:32.9]} 16. Qf3 {[%clk 0:01:48.6]} 16... Rg4 {[%clk
0:02:26.3]} 17. Ng2 {[%clk 0:01:48.5]} 17... Rdg8 {[%clk 0:02:25.6]} 18. b4
{[%clk 0:01:41.1]} 18... b5 {[%clk 0:02:08.6]} 19. Kh1 {[%clk 0:01:35.6]} 19...
Nb6 {[%clk 0:02:07.6]} 20. Bf4 {[%clk 0:01:31.9]} 20... h5 {[%clk 0:01:59.8]}
21. Bxd6 {[%clk 0:01:27.8]} 21... Qxd6 {[%clk 0:02:00.7]} 22. Ne3 {[%clk
0:01:27.8]} 22... R4g6 {[%clk 0:01:52.4]} 23. Qxh5 {[%clk 0:01:22.5]} 23... f4
{[%clk 0:01:52.8]} 24. Ng2 {[%clk 0:01:16.3]} 24... Nd5 {[%clk 0:01:49.3]} 25.
Qf3 {[%clk 0:01:13]} 25... Rh8 {[%clk 0:01:35.2]} 26. Nxf4 {[%clk 0:01:02.5]}
26... Rgh6 {[%clk 0:01:11.1]} 27. h4 {[%clk 0:00:19]} 27... Nxf4 {[%clk
0:00:52.7]} 28. Qxf4 {[%clk 0:00:19.9]} 28... Qxf4 {[%clk 0:00:53.1]} 29. gxf4
{[%clk 0:00:20.8]} 29... Rg8 {[%clk 0:00:50.3]} 0-1

[Event "Late-Titled-Tuesday-Blitz-February-13-2024"]
[Site "Chess.com"]
[Date "2024.02.13"]
[Round "7"]
[White "DenLaz"]
[Black "mr_gustavo"]
[Result "1-0"]
[WhiteElo "3056"]
[BlackElo "2729"]
[TimeControl "180+1"]
[EndTime "15:16:53 PST"]
[Termination "DenLaz won on time"]

1. d4 {[%clk 0:03:00.9]} 1... Nf6 {[%clk 0:02:56.7]} 2. c4 {[%clk 0:03:01.6]}
2... e6 {[%clk 0:02:54]} 3. Nc3 {[%clk 0:03:02]} 3... Bb4 {[%clk 0:02:52.4]} 4.
Nf3 {[%clk 0:03:01.4]} 4... d5 {[%clk 0:02:44.9]} 5. Bg5 {[%clk 0:02:59.5]} 5...
h6 {[%clk 0:02:41.5]} 6. Bxf6 {[%clk 0:02:59.9]} 6... Qxf6 {[%clk 0:02:38.1]} 7.
e3 {[%clk 0:03:00.5]} 7... O-O {[%clk 0:02:38]} 8. Rc1 {[%clk 0:03:00.9]} 8...
c5 {[%clk 0:02:26.4]} 9. cxd5 {[%clk 0:02:59.5]} 9... exd5 {[%clk 0:02:23.7]}
10. dxc5 {[%clk 0:02:59.8]} 10... Be6 {[%clk 0:02:19.3]} 11. a3 {[%clk
0:02:47.4]} 11... Bxc5 {[%clk 0:02:17.5]} 12. Nxd5 {[%clk 0:02:47.9]} 12... Bxd5
{[%clk 0:02:07.4]} 13. Qxd5 {[%clk 0:02:48.8]} 13... Bb6 {[%clk 0:01:42.5]} 14.
Qe5 {[%clk 0:02:02.1]} 14... Qg6 {[%clk 0:01:41]} 15. Bb5 {[%clk 0:01:53.2]}
15... a6 {[%clk 0:00:55.1]} 16. Ba4 {[%clk 0:01:52]} 16... Qg4 {[%clk
0:00:52.5]} 17. Bc2 {[%clk 0:01:45.5]} 17... Nd7 {[%clk 0:00:20]} 18. Qf5 {[%clk
0:01:43.1]} 18... Qxf5 {[%clk 0:00:18.1]} 19. Bxf5 {[%clk 0:01:44]} 19... Nc5
{[%clk 0:00:17.2]} 20. Ke2 {[%clk 0:01:43.8]} 20... a5 {[%clk 0:00:16.8]} 21.
Rhd1 {[%clk 0:01:41.8]} 21... Rfd8 {[%clk 0:00:15.9]} 22. Nd2 {[%clk 0:01:38.9]}
22... a4 {[%clk 0:00:11.8]} 23. Bc2 {[%clk 0:01:38.2]} 23... Ne6 {[%clk
0:00:06.5]} 24. Nc4 {[%clk 0:01:37.5]} 24... Bc7 {[%clk 0:00:06.6]} 25. Rxd8+
{[%clk 0:01:36.4]} 25... Bxd8 {[%clk 0:00:06.2]} 26. Be4 {[%clk 0:01:34.1]}
26... Bf6 {[%clk 0:00:06]} 27. Bxb7 {[%clk 0:01:31.6]} 27... Rb8 {[%clk
0:00:06.5]} 28. Bd5 {[%clk 0:01:32.3]} 28... Nc5 {[%clk 0:00:04.2]} 29. Rc2
{[%clk 0:01:29]} 29... Kf8 {[%clk 0:00:03.1]} 30. Nd2 {[%clk 0:01:12]} 30...
Rxb2 {[%clk 0:00:01.9]} 31. Rxc5 {[%clk 0:01:11.8]} 31... Ke7 {[%clk 0:00:02.8]}
32. Be4 {[%clk 0:01:08]} 32... Kd6 {[%clk 0:00:02.6]} 33. Rc2 {[%clk 0:01:07.6]}
1-0

[Event "Late-Titled-Tuesday-Blitz-February-13-2024"]
[Site "Chess.com"]
[Date "2024.02.13"]
[Round "7"]
[White "Binary010"]
[Black "dawid498"]
[Result "1-0"]
[WhiteElo "2881"]
[BlackElo "2691"]
[TimeControl "180+1"]
[EndTime "15:16:54 PST"]
[Termination "Binary010 won by resignation"]

1. e4 {[%clk 0:03:00.9]} 1... g6 {[%clk 0:02:59.1]} 2. d4 {[%clk 0:03:00.8]}
2... Bg7 {[%clk 0:02:59.7]} 3. Nc3 {[%clk 0:03:01.5]} 3... c6 {[%clk 0:03:00.1]}
4. f4 {[%clk 0:03:01.1]} 4... d5 {[%clk 0:03:00]} 5. e5 {[%clk 0:03:01.5]} 5...
h5 {[%clk 0:03:00.6]} 6. Nf3 {[%clk 0:03:00.9]} 6... Bg4 {[%clk 0:03:00.8]} 7.
Be3 {[%clk 0:02:59.7]} 7... Nh6 {[%clk 0:03:01.1]} 8. h3 {[%clk 0:02:55.1]} 8...
Nf5 {[%clk 0:02:59.7]} 9. Bf2 {[%clk 0:02:55.4]} 9... Bxf3 {[%clk 0:03:00.3]}
10. Qxf3 {[%clk 0:02:56.1]} 10... h4 {[%clk 0:03:01.2]} 11. Bd3 {[%clk
0:02:55.8]} 11... e6 {[%clk 0:03:01.3]} 12. O-O {[%clk 0:02:56.1]} 12... Nd7
{[%clk 0:03:01]} 13. b3 {[%clk 0:02:54.3]} 13... Bf8 {[%clk 0:03:00.9]} 14. Ne2
{[%clk 0:02:53.7]} 14... Be7 {[%clk 0:03:00.2]} 15. c4 {[%clk 0:02:53.3]} 15...
Kf8 {[%clk 0:02:57]} 16. cxd5 {[%clk 0:02:37.6]} 16... cxd5 {[%clk 0:02:57.9]}
17. Rfc1 {[%clk 0:02:37.7]} 17... Rc8 {[%clk 0:02:31.2]} 18. Rxc8 {[%clk
0:02:34.9]} 18... Qxc8 {[%clk 0:02:32.1]} 19. Rc1 {[%clk 0:02:35]} 19... Qb8
{[%clk 0:02:24.8]} 20. Bxf5 {[%clk 0:02:20.6]} 20... gxf5 {[%clk 0:02:23.5]} 21.
Qc3 {[%clk 0:02:21]} 21... Kg7 {[%clk 0:01:53.9]} 22. Qc7 {[%clk 0:02:20.4]}
22... Rd8 {[%clk 0:01:53.3]} 23. Kf1 {[%clk 0:02:16.7]} 23... Kf8 {[%clk
0:01:46.9]} 24. Ng1 {[%clk 0:02:11.1]} 24... Ba3 {[%clk 0:01:15.3]} 25. Rc2
{[%clk 0:02:06.6]} 25... Be7 {[%clk 0:00:55.2]} 26. Nf3 {[%clk 0:02:04.9]} 26...
Nb6 {[%clk 0:00:55.2]} 27. Bxh4 {[%clk 0:01:54.8]} 27... Bxh4 {[%clk 0:00:54.8]}
28. Nxh4 {[%clk 0:01:55.5]} 28... Qxc7 {[%clk 0:00:46.7]} 29. Rxc7 {[%clk
0:01:55.2]} 29... Rd7 {[%clk 0:00:47.5]} 30. Rxd7 {[%clk 0:01:45.8]} 30... Nxd7
{[%clk 0:00:48.4]} 31. g4 {[%clk 0:01:46]} 31... fxg4 {[%clk 0:00:48.2]} 32.
hxg4 {[%clk 0:01:46.9]} 32... Nb8 {[%clk 0:00:47.9]} 33. Ke2 {[%clk 0:01:47.6]}
33... Nc6 {[%clk 0:00:48.1]} 34. Nf3 {[%clk 0:01:45.1]} 34... Ke7 {[%clk
0:00:42.2]} 35. Ke3 {[%clk 0:01:40.5]} 35... Nb4 {[%clk 0:00:41.3]} 36. a4
{[%clk 0:01:40]} 36... a5 {[%clk 0:00:37]} 37. f5 {[%clk 0:01:38.5]} 37... Nc2+
{[%clk 0:00:23.5]} 38. Kd3 {[%clk 0:01:32.4]} 38... Nb4+ {[%clk 0:00:23.3]} 39.
Ke3 {[%clk 0:01:29.9]} 39... Nc2+ {[%clk 0:00:22.8]} 40. Kd2 {[%clk 0:01:30.2]}
40... Nb4 {[%clk 0:00:22.7]} 41. f6+ {[%clk 0:01:25.9]} 41... Ke8 {[%clk
0:00:22.1]} 42. g5 {[%clk 0:01:25.6]} 42... Kf8 {[%clk 0:00:21]} 43. g6 {[%clk
0:01:20.9]} 1-0

[Event "Late-Titled-Tuesday-Blitz-February-13-2024"]
[Site "Chess.com"]
[Date "2024.02.13"]
[Round "7"]
[White "Vamostodorecto"]
[Black "norwaytoadog"]
[Result "1-0"]
[WhiteElo "2381"]
[BlackElo "2207"]
[TimeControl "180+1"]
[EndTime "15:16:56 PST"]
[Termination "Vamostodorecto won on time"]

1. d4 {[%clk 0:03:00.9]} 1... Nf6 {[%clk 0:02:59]} 2. c4 {[%clk 0:03:00.3]} 2...
e6 {[%clk 0:02:59.4]} 3. Nc3 {[%clk 0:03:00]} 3... Bb4 {[%clk 0:02:59.5]} 4. a3
{[%clk 0:03:00.6]} 4... Bxc3+ {[%clk 0:02:59.2]} 5. bxc3 {[%clk 0:03:01.3]} 5...
b6 {[%clk 0:02:59.6]} 6. f3 {[%clk 0:03:01.6]} 6... Nc6 {[%clk 0:02:58.9]} 7. e4
{[%clk 0:03:02]} 7... d6 {[%clk 0:02:54.8]} 8. Bd3 {[%clk 0:03:02.3]} 8... Qd7
{[%clk 0:02:54.4]} 9. Ne2 {[%clk 0:03:02]} 9... Ba6 {[%clk 0:02:54.2]} 10. O-O
{[%clk 0:02:53.9]} 10... Na5 {[%clk 0:02:54]} 11. f4 {[%clk 0:02:28.2]} 11...
Bxc4 {[%clk 0:02:48.5]} 12. Bxc4 {[%clk 0:02:16]} 12... Nxc4 {[%clk 0:02:47.9]}
13. Qd3 {[%clk 0:02:16.7]} 13... d5 {[%clk 0:02:35]} 14. Ng3 {[%clk 0:02:12.8]}
14... O-O-O {[%clk 0:02:23.9]} 15. e5 {[%clk 0:02:12.2]} 15... Ng4 {[%clk
0:01:56.5]} 16. f5 {[%clk 0:01:59.6]} 16... exf5 {[%clk 0:01:33.7]} 17. Nxf5
{[%clk 0:01:50.6]} 17... h5 {[%clk 0:01:14.8]} 18. h3 {[%clk 0:01:45.1]} 18...
Nh6 {[%clk 0:01:08.6]} 19. Nxg7 {[%clk 0:01:45.6]} 19... Rdg8 {[%clk 0:00:54.6]}
20. Nxh5 {[%clk 0:01:34.5]} 20... Rg6 {[%clk 0:00:33]} 21. Nf6 {[%clk
0:01:30.2]} 21... Qe6 {[%clk 0:00:30.4]} 22. Qf3 {[%clk 0:01:24.4]} 22... c6
{[%clk 0:00:26.4]} 23. Bxh6 {[%clk 0:01:19.2]} 23... Rhxh6 {[%clk 0:00:24.4]}
24. Ng4 {[%clk 0:01:19.8]} 24... Rh7 {[%clk 0:00:23.6]} 25. Qf5 {[%clk 0:01:08]}
25... Kd7 {[%clk 0:00:21.4]} 26. Nf6+ {[%clk 0:01:07]} 26... Rxf6 {[%clk
0:00:19.7]} 27. Qxh7 {[%clk 0:01:01.5]} 27... Rxf1+ {[%clk 0:00:13]} 28. Rxf1
{[%clk 0:01:02.4]} 28... c5 {[%clk 0:00:08.4]} 29. Rxf7+ {[%clk 0:00:59.2]} 1-0

[Event "Late-Titled-Tuesday-Blitz-February-13-2024"]
[Site "Chess.com"]
[Date "2024.02.13"]
[Round "7"]
[White "egnfanclub"]
[Black "Baronessa08"]
[Result "0-1"]
[WhiteElo "2348"]
[BlackElo "2545"]
[TimeControl "180+1"]
[EndTime "15:17:08 PST"]
[Termination "Baronessa08 won by resignation"]

1. e4 {[%clk 0:03:00.9]} 1... c5 {[%clk 0:02:59.2]} 2. Nc3 {[%clk 0:03:00.1]}
2... Nc6 {[%clk 0:02:58.1]} 3. f4 {[%clk 0:03:01]} 3... d6 {[%clk 0:02:56.2]} 4.
Nf3 {[%clk 0:03:00.3]} 4... g6 {[%clk 0:02:52.1]} 5. Bb5 {[%clk 0:02:56.6]} 5...
Bd7 {[%clk 0:02:49.6]} 6. O-O {[%clk 0:02:53.5]} 6... Bg7 {[%clk 0:02:49.6]} 7.
d3 {[%clk 0:02:52.4]} 7... a6 {[%clk 0:02:46.8]} 8. Bxc6 {[%clk 0:02:52]} 8...
Bxc6 {[%clk 0:02:47]} 9. Qe1 {[%clk 0:02:50.7]} 9... b5 {[%clk 0:02:45.9]} 10.
f5 {[%clk 0:02:50.4]} 10... b4 {[%clk 0:02:41.1]} 11. Nd5 {[%clk 0:02:48.8]}
11... Bxd5 {[%clk 0:02:40.7]} 12. exd5 {[%clk 0:02:48.9]} 12... Nf6 {[%clk
0:02:40.3]} 13. fxg6 {[%clk 0:02:45.7]} 13... hxg6 {[%clk 0:02:40.2]} 14. Ng5
{[%clk 0:02:37.7]} 14... Qd7 {[%clk 0:02:31.8]} 15. c4 {[%clk 0:02:28.2]} 15...
Rh5 {[%clk 0:02:10.4]} 16. a3 {[%clk 0:02:17.2]} 16... b3 {[%clk 0:02:07]} 17.
Be3 {[%clk 0:01:40.2]} 17... O-O-O {[%clk 0:01:38.1]} 18. Nxf7 {[%clk
0:01:29.2]} 18... Rg8 {[%clk 0:01:27.7]} 19. Qa5 {[%clk 0:01:16.6]} 19... Kb7
{[%clk 0:01:24.2]} 20. Qc3 {[%clk 0:01:12]} 20... Ng4 {[%clk 0:01:21.6]} 21.
Qxb3+ {[%clk 0:01:12.1]} 21... Ka8 {[%clk 0:01:19.4]} 22. Bf2 {[%clk 0:00:32.6]}
22... Nxf2 {[%clk 0:00:59.7]} 23. Rxf2 {[%clk 0:00:33.5]} 23... Bd4 {[%clk
0:00:59.1]} 24. Rf1 {[%clk 0:00:19.8]} 24... Rf5 {[%clk 0:00:57]} 25. Nh6 {[%clk
0:00:17.6]} 25... Rxf2 {[%clk 0:00:53.9]} 26. Rxf2 {[%clk 0:00:18.3]} 26... Rf8
{[%clk 0:00:53.4]} 27. Ng4 {[%clk 0:00:08.7]} 27... Qxg4 {[%clk 0:00:50.8]} 28.
Qa4 {[%clk 0:00:09.3]} 28... Bxf2+ {[%clk 0:00:41.8]} 29. Kh1 {[%clk 0:00:09.5]}
29... Qc8 {[%clk 0:00:41.6]} 0-1

[Event "Late-Titled-Tuesday-Blitz-February-13-2024"]
[Site "Chess.com"]
[Date "2024.02.13"]
[Round "7"]
[White "ahmedkandiliii"]
[Black "Ducke13"]
[Result "1-0"]
[WhiteElo "2553"]
[BlackElo "2352"]
[TimeControl "180+1"]
[EndTime "15:17:10 PST"]
[Termination "ahmedkandiliii won by resignation"]

1. e4 {[%clk 0:03:00.9]} 1... c5 {[%clk 0:02:53.3]} 2. Nf3 {[%clk 0:02:59.9]}
2... d6 {[%clk 0:02:53.6]} 3. Bb5+ {[%clk 0:02:59.2]} 3... Nd7 {[%clk 0:02:47]}
4. O-O {[%clk 0:02:58.3]} 4... Nf6 {[%clk 0:02:46.2]} 5. Bd3 {[%clk 0:02:56.4]}
5... a6 {[%clk 0:02:37.4]} 6. c3 {[%clk 0:02:55.4]} 6... b5 {[%clk 0:02:36.4]}
7. Bc2 {[%clk 0:02:55.1]} 7... Bb7 {[%clk 0:02:35.2]} 8. Re1 {[%clk 0:02:55.7]}
8... e6 {[%clk 0:02:34.6]} 9. d4 {[%clk 0:02:55.5]} 9... Be7 {[%clk 0:02:17.2]}
10. e5 {[%clk 0:02:43.4]} 10... Bxf3 {[%clk 0:02:16.5]} 11. Qxf3 {[%clk
0:02:38.5]} 11... Nd5 {[%clk 0:02:17]} 12. exd6 {[%clk 0:02:36.7]} 12... Bxd6
{[%clk 0:02:16.7]} 13. Qxd5 {[%clk 0:02:36.3]} 13... Nf6 {[%clk 0:01:34.6]} 14.
Qc6+ {[%clk 0:02:29.2]} 14... Ke7 {[%clk 0:01:34.4]} 15. dxc5 {[%clk 0:02:26.3]}
15... Bc7 {[%clk 0:01:32.1]} 16. Bg5 {[%clk 0:02:20.6]} 16... Qc8 {[%clk
0:01:31.3]} 17. Qf3 {[%clk 0:02:16.1]} 17... Rd8 {[%clk 0:01:29.7]} 18. Nd2
{[%clk 0:02:10.2]} 18... h6 {[%clk 0:01:24.9]} 19. Bxf6+ {[%clk 0:02:06.2]}
19... gxf6 {[%clk 0:01:25.8]} 20. Ne4 {[%clk 0:02:05.2]} 20... f5 {[%clk
0:01:19.4]} 21. Nd6 {[%clk 0:02:00.7]} 21... Bxd6 {[%clk 0:01:19.4]} 22. cxd6+
{[%clk 0:02:01.4]} 22... Rxd6 {[%clk 0:01:17.2]} 23. Bxf5 {[%clk 0:02:01.1]}
23... Ra7 {[%clk 0:01:14.3]} 24. Qf4 {[%clk 0:01:58.7]} 24... Qc5 {[%clk
0:01:11.5]} 25. Bc2 {[%clk 0:01:42.4]} 25... h5 {[%clk 0:01:11.3]} 26. Re5
{[%clk 0:01:39.7]} 26... Qc7 {[%clk 0:01:09.6]} 27. Qg5+ {[%clk 0:01:38.3]}
27... Kd7 {[%clk 0:01:07.5]} 28. Qxh5 {[%clk 0:01:33.4]} 28... Kc8 {[%clk
0:01:07.1]} 29. Ree1 {[%clk 0:01:29.2]} 29... Rd2 {[%clk 0:00:59]} 30. Be4
{[%clk 0:01:26.1]} 30... Qf4 {[%clk 0:00:50.5]} 31. Bf3 {[%clk 0:01:05.1]} 31...
Rad7 {[%clk 0:00:44.7]} 32. Qc5+ {[%clk 0:00:59.6]} 32... Kd8 {[%clk 0:00:37.1]}
33. Qb6+ {[%clk 0:00:49.6]} 33... Ke7 {[%clk 0:00:35.4]} 34. Qxa6 {[%clk
0:00:47.5]} 34... Rxb2 {[%clk 0:00:34.3]} 35. Qa3+ {[%clk 0:00:47.2]} 35... Rb4
{[%clk 0:00:24.1]} 36. Qxb4+ {[%clk 0:00:46.4]} 36... Qxb4 {[%clk 0:00:24.7]}
37. cxb4 {[%clk 0:00:47.2]} 1-0

[Event "Late-Titled-Tuesday-Blitz-February-13-2024"]
[Site "Chess.com"]
[Date "2024.02.13"]
[Round "7"]
[White "DeTimmerman"]
[Black "EvilMorty23"]
[Result "1-0"]
[WhiteElo "2726"]
[BlackElo "2512"]
[TimeControl "180+1"]
[EndTime "15:17:14 PST"]
[Termination "DeTimmerman won on time"]

1. e4 {[%clk 0:02:59.9]} 1... e6 {[%clk 0:02:58.9]} 2. d4 {[%clk 0:02:59.9]}
2... d5 {[%clk 0:02:59.1]} 3. Nd2 {[%clk 0:03:00.3]} 3... Nf6 {[%clk 0:02:59.3]}
4. e5 {[%clk 0:02:58.4]} 4... Nfd7 {[%clk 0:02:59.5]} 5. f4 {[%clk 0:02:59.2]}
5... c5 {[%clk 0:03:00.1]} 6. c3 {[%clk 0:03:00]} 6... Nc6 {[%clk 0:03:00.7]} 7.
Ndf3 {[%clk 0:03:00.6]} 7... cxd4 {[%clk 0:02:50.1]} 8. cxd4 {[%clk 0:03:01.5]}
8... Bb4+ {[%clk 0:02:49.4]} 9. Kf2 {[%clk 0:03:01.3]} 9... f6 {[%clk 0:02:48]}
10. g3 {[%clk 0:02:59]} 10... fxe5 {[%clk 0:02:45.4]} 11. fxe5 {[%clk
0:02:57.9]} 11... O-O {[%clk 0:02:45.5]} 12. Kg2 {[%clk 0:02:58.7]} 12... Qb6
{[%clk 0:02:23.3]} 13. Bd3 {[%clk 0:02:57.5]} 13... g6 {[%clk 0:02:18.7]} 14.
Bc2 {[%clk 0:02:44.3]} 14... Be7 {[%clk 0:01:49]} 15. h4 {[%clk 0:02:42.6]}
15... Rf7 {[%clk 0:01:29.9]} 16. h5 {[%clk 0:02:39.2]} 16... Nf8 {[%clk
0:01:28.2]} 17. Rb1 {[%clk 0:02:24.8]} 17... Nb4 {[%clk 0:01:27.3]} 18. Bb3
{[%clk 0:02:21.4]} 18... Bd7 {[%clk 0:01:12.7]} 19. a3 {[%clk 0:02:21.5]} 19...
Nc6 {[%clk 0:01:12.2]} 20. Bc2 {[%clk 0:02:21]} 20... Na5 {[%clk 0:01:10.9]} 21.
Bh6 {[%clk 0:02:11.8]} 21... Nc4 {[%clk 0:01:04.2]} 22. Bd3 {[%clk 0:01:50.3]}
22... Rc8 {[%clk 0:00:54.8]} 23. Nh3 {[%clk 0:01:40.5]} 23... Bb5 {[%clk
0:00:31.7]} 24. Nf2 {[%clk 0:01:37.2]} 24... Qa6 {[%clk 0:00:20.3]} 25. Qe2
{[%clk 0:01:32.1]} 25... Qb6 {[%clk 0:00:14.9]} 26. Ng4 {[%clk 0:01:27.7]} 26...
Rxf3 {[%clk 0:00:13.1]} 27. Qxf3 {[%clk 0:01:11.8]} 27... Qxd4 {[%clk
0:00:13.2]} 28. Rbf1 {[%clk 0:01:12.4]} 28... Qxb2+ {[%clk 0:00:03.1]} 29. Rf2
{[%clk 0:01:12.8]} 29... Qxf2+ {[%clk 0:00:03.4]} 30. Qxf2 {[%clk 0:01:09.8]}
30... Bc5 {[%clk 0:00:02.2]} 31. Nf6+ {[%clk 0:00:55.4]} 31... Kh8 {[%clk
0:00:01.8]} 32. Bxf8 {[%clk 0:00:49.5]} 1-0

[Event "Late-Titled-Tuesday-Blitz-February-13-2024"]
[Site "Chess.com"]
[Date "2024.02.13"]
[Round "7"]
[White "verrbaa"]
[Black "ansko1999"]
[Result "1-0"]
[WhiteElo "2512"]
[BlackElo "2627"]
[TimeControl "180+1"]
[EndTime "15:17:15 PST"]
[Termination "verrbaa won by checkmate"]

1. e4 {[%clk 0:02:57]} 1... c5 {[%clk 0:02:58.7]} 2. Nf3 {[%clk 0:02:57.1]} 2...
e6 {[%clk 0:02:58.9]} 3. d4 {[%clk 0:02:57]} 3... cxd4 {[%clk 0:02:59.8]} 4.
Nxd4 {[%clk 0:02:57.1]} 4... Nc6 {[%clk 0:03:00]} 5. Nc3 {[%clk 0:02:57.5]} 5...
Qc7 {[%clk 0:03:00.2]} 6. Be2 {[%clk 0:02:56.9]} 6... a6 {[%clk 0:02:58.8]} 7.
O-O {[%clk 0:02:55.7]} 7... Nf6 {[%clk 0:02:58.5]} 8. Be3 {[%clk 0:02:54.7]}
8... b5 {[%clk 0:02:57.6]} 9. Nxc6 {[%clk 0:02:44.6]} 9... dxc6 {[%clk
0:02:41.9]} 10. Bf3 {[%clk 0:02:36.2]} 10... e5 {[%clk 0:02:40.7]} 11. a4 {[%clk
0:02:34]} 11... Rb8 {[%clk 0:02:28.2]} 12. axb5 {[%clk 0:02:29.2]} 12... axb5
{[%clk 0:02:28.9]} 13. g3 {[%clk 0:02:01.7]} 13... Bh3 {[%clk 0:02:16.5]} 14.
Ra7 {[%clk 0:01:55.6]} 14... Rb7 {[%clk 0:02:11.7]} 15. Ra8+ {[%clk 0:01:33.9]}
15... Rb8 {[%clk 0:02:11.9]} 16. Ra7 {[%clk 0:01:33.8]} 16... Qc8 {[%clk
0:01:59.9]} 17. Re1 {[%clk 0:01:33.1]} 17... Bb4 {[%clk 0:01:57.8]} 18. Bg5
{[%clk 0:01:30.5]} 18... Nd7 {[%clk 0:01:37.3]} 19. Bg4 {[%clk 0:01:15.2]} 19...
Bxg4 {[%clk 0:01:34.3]} 20. Qxg4 {[%clk 0:01:16.1]} 20... Nc5 {[%clk 0:01:27.3]}
21. Re7+ {[%clk 0:01:14.2]} 21... Kf8 {[%clk 0:01:26.1]} 22. Qf3 {[%clk
0:00:54.5]} 22... f5 {[%clk 0:00:59.1]} 23. exf5 {[%clk 0:00:54.3]} 23... Nd7
{[%clk 0:00:34.3]} 24. Re6 {[%clk 0:00:50]} 24... Kf7 {[%clk 0:00:26.9]} 25.
Rxc6 {[%clk 0:00:43.9]} 25... Qb7 {[%clk 0:00:23.2]} 26. Qd5+ {[%clk 0:00:44]}
26... Kf8 {[%clk 0:00:19.4]} 27. f6 {[%clk 0:00:36.4]} 27... Nxf6 {[%clk
0:00:15]} 28. Bxf6 {[%clk 0:00:36.6]} 28... gxf6 {[%clk 0:00:14.7]} 29. Rxf6+
{[%clk 0:00:31.8]} 29... Kg7 {[%clk 0:00:15]} 30. Qxe5 {[%clk 0:00:32.3]} 30...
Bxc3 {[%clk 0:00:07.5]} 31. Qg5# {[%clk 0:00:31.4]} 1-0